[Event "Titled Tuesday Blitz October 11 Early 2022"]
[White "Hanley, Craig A"]
[Black "Wiegmann, Sascha"]
[WhiteFideId "408514"]
[BlackFideId "4682041"]
[WhiteElo "2439"]
[BlackElo "2253"]
[Result "1-0"]
[Round "02"]
[TimeControl "180+1"]
[Date "2022.10.12"]
[WhiteClock "0:00:11"]
[BlackClock "0:00:12"]

1. d4 {[%clk 0:03:00]}  Nf6 {[%clk 0:02:59]} 2. c4 {[%clk 0:03:00]}  g6 {[%clk 0:02:59]} 3. g3 {[%clk 0:03:00]}  Bg7 {[%clk 0:03:00]} 4. Bg2 {[%clk 0:03:00]}  O-O {[%clk 0:03:00]} 5. Nc3 {[%clk 0:02:59]}  d6 {[%clk 0:03:01]} 6. Nf3 {[%clk 0:02:59]}  Nbd7 {[%clk 0:03:01]} 7. O-O {[%clk 0:02:58]}  e5 {[%clk 0:03:02]} 8. e4 {[%clk 0:02:58]}  exd4 {[%clk 0:03:02]} 9. Nxd4 {[%clk 0:02:58]}  Re8 {[%clk 0:03:03]} 10. h3 {[%clk 0:02:50]}  a6 {[%clk 0:03:03]} 11. Be3 {[%clk 0:02:14]}  Rb8 {[%clk 0:03:02]} 12. Qc2 {[%clk 0:02:11]}  c5 {[%clk 0:02:46]} 13. Nb3 {[%clk 0:01:37]}  b5 {[%clk 0:02:42]} 14. Rad1 {[%clk 0:01:12]}  bxc4 {[%clk 0:02:03]} 15. Nd2 {[%clk 0:01:10]}  Nb6 {[%clk 0:02:02]} 16. a4 {[%clk 0:01:02]}  a5 {[%clk 0:01:59]} 17. Ndb1 {[%clk 0:00:40]}  Qe7 {[%clk 0:01:42]} 18. Bf4 {[%clk 0:00:39]}  Rd8 {[%clk 0:00:55]} 19. Nb5 {[%clk 0:00:38]}  Ba6 {[%clk 0:00:49]} 20. Bxd6 {[%clk 0:00:32]}  Qe6 {[%clk 0:00:47]} 21. N1c3 {[%clk 0:00:28]}  Bxb5 {[%clk 0:00:45]} 22. Nxb5 {[%clk 0:00:27]}  Rbc8 {[%clk 0:00:45]} 23. Bc7 {[%clk 0:00:20]}  Rxd1 {[%clk 0:00:44]} 24. Rxd1 {[%clk 0:00:20]}  Nbd7 {[%clk 0:00:40]} 25. f4 {[%clk 0:00:19]}  Nh5 {[%clk 0:00:39]} 26. Kh2 {[%clk 0:00:18]}  Re8 {[%clk 0:00:33]} 27. Bxa5 {[%clk 0:00:18]}  Ndf6 {[%clk 0:00:32]} 28. e5 {[%clk 0:00:17]}  Nd7 {[%clk 0:00:30]} 29. Bd5 {[%clk 0:00:16]}  Qe7 {[%clk 0:00:27]} 30. Bc3 {[%clk 0:00:16]}  Bh6 {[%clk 0:00:21]} 31. Qf2 {[%clk 0:00:14]}  Rf8 {[%clk 0:00:19]} 32. Nd6 {[%clk 0:00:13]}  Nb6 {[%clk 0:00:19]} 33. Bc6 {[%clk 0:00:13]}  Nd7 {[%clk 0:00:18]} 34. a5 {[%clk 0:00:12]}  Nb8 {[%clk 0:00:17]} 35. Bd5 {[%clk 0:00:13]}  g5 {[%clk 0:00:15]} 36. f5 {[%clk 0:00:12]}  g4 {[%clk 0:00:15]} 37. hxg4 {[%clk 0:00:12]}  Qg5 {[%clk 0:00:15]} 38. gxh5 {[%clk 0:00:12]}  Qxh5+ {[%clk 0:00:16]} 39. Kg2 {[%clk 0:00:12]}  Qxd1 {[%clk 0:00:17]} 40. Qf3 {[%clk 0:00:12]}  Be3 {[%clk 0:00:15]} 41. Qxd1 {[%clk 0:00:11]}  Nd7 {[%clk 0:00:12]} 42. Qg4+ {[%clk 0:00:11]}  Kh8 {[%clk 0:00:12]} 43. e6+ {[%clk 0:00:11]}  f6 {[%clk 0:00:13]} 44. exd7 {[%clk 0:00:12]}  Bd4 {[%clk 0:00:12]} 45. Bxd4 {[%clk 0:00:11]}  cxd4 {[%clk 0:00:13]} 46. d8=Q {[%clk 0:00:11]}  Rxd8 {[%clk 0:00:12]} 47. Nf7# {[%clk 0:00:11]} 1-0


[Site "https://www.chess.com"]

[Event "Titled Tuesday Blitz October 11 Early 2022"]
[White "Hardaway, Brewington"]
[Black "Yeletsky, Ivan"]
[WhiteFideId "30941849"]
[BlackFideId "24180327"]
[WhiteElo "2159"]
[BlackElo "2391"]
[Result "0-1"]
[Round "02"]
[TimeControl "180+1"]
[Date "2022.10.11"]
[WhiteClock "0:00:00"]
[BlackClock "0:00:14"]

1. Nf3 {[%clk 0:03:00]}  b6 {[%clk 0:02:59]} 2. c4 {[%clk 0:03:00]}  Bb7 {[%clk 0:03:00]} 3. Nc3 {[%clk 0:03:00]}  e6 {[%clk 0:03:00]} 4. d4 {[%clk 0:02:59]}  Bb4 {[%clk 0:02:59]} 5. Qc2 {[%clk 0:02:59]}  Nf6 {[%clk 0:02:55]} 6. a3 {[%clk 0:02:57]}  Be4 {[%clk 0:02:55]} 7. Qb3 {[%clk 0:02:50]}  Bxc3+ {[%clk 0:02:55]} 8. Qxc3 {[%clk 0:02:47]}  a5 {[%clk 0:02:56]} 9. g3 {[%clk 0:02:44]}  a4 {[%clk 0:02:56]} 10. Bg2 {[%clk 0:02:42]}  h6 {[%clk 0:02:55]} 11. O-O {[%clk 0:02:41]}  O-O {[%clk 0:02:56]} 12. Bf4 {[%clk 0:02:34]}  d6 {[%clk 0:02:56]} 13. Rfd1 {[%clk 0:02:27]}  Nbd7 {[%clk 0:02:55]} 14. Rac1 {[%clk 0:02:27]}  Qb8 {[%clk 0:02:44]} 15. Nd2 {[%clk 0:02:24]}  Bxg2 {[%clk 0:02:43]} 16. Kxg2 {[%clk 0:02:25]}  Qb7+ {[%clk 0:02:34]} 17. f3 {[%clk 0:02:23]}  b5 {[%clk 0:02:31]} 18. c5 {[%clk 0:02:18]}  Nd5 {[%clk 0:02:29]} 19. c6 {[%clk 0:02:10]}  Qb6 {[%clk 0:02:26]} 20. Qd3 {[%clk 0:02:09]}  Nxf4+ {[%clk 0:02:23]} 21. gxf4 {[%clk 0:02:10]}  Nf6 {[%clk 0:02:24]} 22. Ne4 {[%clk 0:01:55]}  Nd5 {[%clk 0:02:17]} 23. e3 {[%clk 0:01:54]}  b4 {[%clk 0:02:18]} 24. Nd2 {[%clk 0:01:30]}  Qa6 {[%clk 0:02:10]} 25. Nf1 {[%clk 0:00:59]}  bxa3 {[%clk 0:02:10]} 26. bxa3 {[%clk 0:00:56]}  Rfb8 {[%clk 0:02:10]} 27. Qe4 {[%clk 0:00:42]}  Qe2+ {[%clk 0:02:05]} 28. Kh3 {[%clk 0:00:34]}  Rb2 {[%clk 0:02:06]} 29. Rb1 {[%clk 0:00:25]}  Qg2+ {[%clk 0:02:05]} 30. Kh4 {[%clk 0:00:25]}  g5+ {[%clk 0:02:05]} 31. fxg5 {[%clk 0:00:24]}  Qxg5+ {[%clk 0:02:06]} 32. Kh3 {[%clk 0:00:19]}  Qg2+ {[%clk 0:02:07]} 33. Kh4 {[%clk 0:00:19]}  Rxb1 {[%clk 0:01:44]} 34. Rxb1 {[%clk 0:00:19]}  Ne7 {[%clk 0:01:44]} 35. Qg4+ {[%clk 0:00:18]}  Ng6+ {[%clk 0:01:45]} 36. Kh5 {[%clk 0:00:18]}  Ra5+ {[%clk 0:01:42]} 37. Kxh6 {[%clk 0:00:17]}  Qxg4 {[%clk 0:01:18]} 38. Rb8+ {[%clk 0:00:17]}  Nf8 {[%clk 0:01:17]} 39. fxg4 {[%clk 0:00:17]}  Ra6 {[%clk 0:01:07]} 40. Nd2 {[%clk 0:00:17]}  f5 {[%clk 0:01:00]} 41. gxf5 {[%clk 0:00:17]}  exf5 {[%clk 0:01:01]} 42. Nf3 {[%clk 0:00:17]}  Kf7 {[%clk 0:01:01]} 43. Ng5+ {[%clk 0:00:17]}  Ke7 {[%clk 0:01:01]} 44. Kg7 {[%clk 0:00:18]}  Ne6+ {[%clk 0:00:59]} 45. Nxe6 {[%clk 0:00:18]}  Kxe6 {[%clk 0:01:00]} 46. Rb5 {[%clk 0:00:18]}  d5 {[%clk 0:00:54]} 47. Rc5 {[%clk 0:00:15]}  Rb6 {[%clk 0:00:54]} 48. Kf8 {[%clk 0:00:15]}  Kf6 {[%clk 0:00:48]} 49. Ke8 {[%clk 0:00:15]}  Ke6 {[%clk 0:00:47]} 50. Kd8 {[%clk 0:00:15]}  Kd6 {[%clk 0:00:47]} 51. Kc8 {[%clk 0:00:15]}  Rb3 {[%clk 0:00:45]} 52. Ra5 {[%clk 0:00:13]}  Rxa3 {[%clk 0:00:44]} 53. Ra7 {[%clk 0:00:13]}  Rxe3 {[%clk 0:00:34]} 54. Rxc7 {[%clk 0:00:13]}  a3 {[%clk 0:00:35]} 55. Kb7 {[%clk 0:00:09]}  Rb3+ {[%clk 0:00:34]} 56. Kc8 {[%clk 0:00:09]}  a2 {[%clk 0:00:33]} 57. Ra7 {[%clk 0:00:10]}  Rb2 {[%clk 0:00:28]} 58. c7 {[%clk 0:00:09]}  Ke7 {[%clk 0:00:29]} 59. Ra3 {[%clk 0:00:08]}  f4 {[%clk 0:00:29]} 60. h4 {[%clk 0:00:07]}  f3 {[%clk 0:00:28]} 61. Re3+ {[%clk 0:00:07]}  Kd6 {[%clk 0:00:24]} 62. Kd8 {[%clk 0:00:07]}  Rc2 {[%clk 0:00:24]} 63. Ra3 {[%clk 0:00:07]}  Rxc7 {[%clk 0:00:22]} 64. Rxa2 {[%clk 0:00:07]}  Rc3 {[%clk 0:00:17]} 65. Ra6+ {[%clk 0:00:06]}  Rc6 {[%clk 0:00:17]} 66. Ra2 {[%clk 0:00:07]}  Rb6 {[%clk 0:00:14]} 67. Ke8 {[%clk 0:00:00]}  Ke6 {[%clk 0:00:14]} 0-1


[Site "https://www.chess.com"]

[Event "Titled Tuesday Blitz October 11 Early 2022"]
[White "Hartikainen, Jarmo"]
[Black "Karavade, Eesha"]
[WhiteFideId "503134"]
[BlackFideId "5012600"]
[WhiteElo "2121"]
[BlackElo "2258"]
[Result "1-0"]
[Round "02"]
[TimeControl "180+1"]
[Date "2022.10.12"]
[WhiteClock "0:02:36"]
[BlackClock "0:02:27"]

1. e4 {[%clk 0:03:00]}  c5 {[%clk 0:02:59]} 2. c3 {[%clk 0:03:01]}  Nf6 {[%clk 0:02:53]} 3. e5 {[%clk 0:03:01]}  Nd5 {[%clk 0:02:53]} 4. d4 {[%clk 0:03:01]}  cxd4 {[%clk 0:02:53]} 5. Nf3 {[%clk 0:03:01]}  Nc6 {[%clk 0:02:52]} 6. cxd4 {[%clk 0:03:02]}  d6 {[%clk 0:02:52]} 7. Nc3 {[%clk 0:03:02]}  Nxc3 {[%clk 0:02:51]} 8. bxc3 {[%clk 0:03:02]}  dxe5 {[%clk 0:02:46]} 9. d5 {[%clk 0:03:02]}  e4 {[%clk 0:02:46]} 10. dxc6 {[%clk 0:02:55]}  Qxd1+ {[%clk 0:02:45]} 11. Kxd1 {[%clk 0:02:55]}  exf3 {[%clk 0:02:45]} 12. Bb5 {[%clk 0:02:41]}  Kd8 {[%clk 0:02:32]} 13. Bf4 {[%clk 0:02:37]}  a6 {[%clk 0:02:27]} 14. c7# {[%clk 0:02:36]} 1-0


[Site "https://www.chess.com"]

[Event "Titled Tuesday Blitz October 11 Early 2022"]
[White "Hristodoulou, Panagiotis"]
[Black "Kamsky, Gata"]
[WhiteFideId "4214340"]
[BlackFideId "2000024"]
[WhiteElo "2272"]
[BlackElo "2666"]
[Result "1-0"]
[Round "02"]
[TimeControl "180+1"]
[Date "2022.10.11"]
[WhiteClock "0:00:07"]
[BlackClock "0:00:03"]

1. e4 {[%clk 0:03:00]}  c5 {[%clk 0:02:57]} 2. Nf3 {[%clk 0:03:00]}  e6 {[%clk 0:02:57]} 3. d4 {[%clk 0:03:01]}  cxd4 {[%clk 0:02:57]} 4. Nxd4 {[%clk 0:03:02]}  a6 {[%clk 0:02:57]} 5. Bd3 {[%clk 0:03:02]}  Bc5 {[%clk 0:02:56]} 6. Nb3 {[%clk 0:03:01]}  Ba7 {[%clk 0:02:56]} 7. O-O {[%clk 0:02:51]}  Ne7 {[%clk 0:02:55]} 8. Nc3 {[%clk 0:02:51]}  d6 {[%clk 0:02:53]} 9. Kh1 {[%clk 0:02:51]}  e5 {[%clk 0:02:52]} 10. f4 {[%clk 0:02:48]}  exf4 {[%clk 0:02:39]} 11. Bxf4 {[%clk 0:02:49]}  Nbc6 {[%clk 0:01:31]} 12. Bc4 {[%clk 0:02:45]}  O-O {[%clk 0:01:15]} 13. Bxd6 {[%clk 0:01:03]}  Be6 {[%clk 0:01:03]} 14. Bxe6 {[%clk 0:01:01]}  fxe6 {[%clk 0:01:01]} 15. Qd3 {[%clk 0:00:45]}  Rxf1+ {[%clk 0:00:50]} 16. Rxf1 {[%clk 0:00:44]}  Ng6 {[%clk 0:00:50]} 17. h3 {[%clk 0:00:06]}  Rc8 {[%clk 0:00:41]} 18. Rd1 {[%clk 0:00:04]}  Nce5 {[%clk 0:00:29]} 19. Bxe5 {[%clk 0:00:04]}  Qxd3 {[%clk 0:00:29]} 20. cxd3 {[%clk 0:00:04]}  Nxe5 {[%clk 0:00:29]} 21. Kh2 {[%clk 0:00:02]}  Rd8 {[%clk 0:00:27]} 22. d4 {[%clk 0:00:02]}  Nc4 {[%clk 0:00:27]} 23. d5 {[%clk 0:00:02]}  Nxb2 {[%clk 0:00:18]} 24. Rf1 {[%clk 0:00:03]}  e5 {[%clk 0:00:16]} 25. Kh1 {[%clk 0:00:02]}  Nc4 {[%clk 0:00:16]} 26. Ne2 {[%clk 0:00:02]}  b5 {[%clk 0:00:16]} 27. Rc1 {[%clk 0:00:02]}  g6 {[%clk 0:00:16]} 28. Ng1 {[%clk 0:00:01]}  Kf7 {[%clk 0:00:14]} 29. Nf3 {[%clk 0:00:01]}  Ke7 {[%clk 0:00:14]} 30. Nbd2 {[%clk 0:00:02]}  Nxd2 {[%clk 0:00:13]} 31. Nxd2 {[%clk 0:00:03]}  Be3 {[%clk 0:00:13]} 32. Rc7+ {[%clk 0:00:03]}  Rd7 {[%clk 0:00:13]} 33. Rxd7+ {[%clk 0:00:03]}  Kxd7 {[%clk 0:00:13]} 34. Nb3 {[%clk 0:00:04]}  Bb6 {[%clk 0:00:12]} 35. g3 {[%clk 0:00:04]}  a5 {[%clk 0:00:13]} 36. Kg2 {[%clk 0:00:05]}  a4 {[%clk 0:00:13]} 37. Nc1 {[%clk 0:00:05]}  b4 {[%clk 0:00:07]} 38. Kf3 {[%clk 0:00:06]}  Bd4 {[%clk 0:00:07]} 39. Ke2 {[%clk 0:00:06]}  Kd6 {[%clk 0:00:06]} 40. Nd3 {[%clk 0:00:06]}  b3 {[%clk 0:00:05]} 41. axb3 {[%clk 0:00:06]}  axb3 {[%clk 0:00:05]} 42. Kd2 {[%clk 0:00:07]}  h5 {[%clk 0:00:05]} 43. g4 {[%clk 0:00:07]}  hxg4 {[%clk 0:00:04]} 44. hxg4 {[%clk 0:00:08]}  Ke7 {[%clk 0:00:04]} 45. Ne1 {[%clk 0:00:07]}  Kf6 {[%clk 0:00:03]} 46. Nf3 {[%clk 0:00:07]} 1-0


[Site "https://www.chess.com"]

[Event "Titled Tuesday Blitz October 11 Early 2022"]
[White "Ianov, Viktor"]
[Black "Valle Maytin, Luis Enrique"]
[WhiteFideId "14102730"]
[BlackFideId "3503666"]
[WhiteElo "2152"]
[BlackElo "2225"]
[Result "1-0"]
[Round "02"]
[TimeControl "180+1"]
[Date "2022.10.12"]
[WhiteClock "0:00:53"]
[BlackClock "0:00:01"]

1. Nf3 {[%clk 0:03:00]}  Nf6 {[%clk 0:02:57]} 2. g3 {[%clk 0:02:58]}  d5 {[%clk 0:02:56]} 3. Bg2 {[%clk 0:02:58]}  g6 {[%clk 0:02:57]} 4. b3 {[%clk 0:02:56]}  Bg7 {[%clk 0:02:57]} 5. Bb2 {[%clk 0:02:56]}  O-O {[%clk 0:02:57]} 6. c4 {[%clk 0:02:55]}  c6 {[%clk 0:02:56]} 7. O-O {[%clk 0:02:51]}  Re8 {[%clk 0:02:55]} 8. d3 {[%clk 0:02:51]}  Nbd7 {[%clk 0:02:54]} 9. Nbd2 {[%clk 0:02:51]}  e5 {[%clk 0:02:53]} 10. cxd5 {[%clk 0:02:50]}  cxd5 {[%clk 0:02:53]} 11. e4 {[%clk 0:02:50]}  d4 {[%clk 0:02:50]} 12. Rc1 {[%clk 0:02:49]}  b5 {[%clk 0:02:48]} 13. b4 {[%clk 0:02:47]}  Bb7 {[%clk 0:02:47]} 14. Qb3 {[%clk 0:02:46]}  Rc8 {[%clk 0:02:43]} 15. Ng5 {[%clk 0:02:45]}  Qe7 {[%clk 0:02:40]} 16. f4 {[%clk 0:02:45]}  h6 {[%clk 0:02:39]} 17. Ngf3 {[%clk 0:02:44]}  Ng4 {[%clk 0:02:23]} 18. fxe5 {[%clk 0:02:39]}  Ne3 {[%clk 0:02:21]} 19. Rfe1 {[%clk 0:02:27]}  Nxe5 {[%clk 0:02:11]} 20. Nxd4 {[%clk 0:02:17]}  Nxg2 {[%clk 0:02:02]} 21. Kxg2 {[%clk 0:02:16]}  Rcd8 {[%clk 0:01:51]} 22. Rc5 {[%clk 0:01:57]}  a6 {[%clk 0:01:42]} 23. Rf1 {[%clk 0:01:45]}  Ng4 {[%clk 0:01:33]} 24. Nc2 {[%clk 0:01:38]}  Ne5 {[%clk 0:01:04]} 25. Bxe5 {[%clk 0:01:29]}  Bxe5 {[%clk 0:01:05]} 26. Nf3 {[%clk 0:01:28]}  Bg7 {[%clk 0:01:02]} 27. Ne3 {[%clk 0:01:25]}  Qe6 {[%clk 0:00:44]} 28. Nd5 {[%clk 0:01:22]}  Bxd5 {[%clk 0:00:32]} 29. Rxd5 {[%clk 0:01:21]}  Rxd5 {[%clk 0:00:31]} 30. exd5 {[%clk 0:01:21]}  Qe2+ {[%clk 0:00:30]} 31. Rf2 {[%clk 0:01:21]}  Qe3 {[%clk 0:00:30]} 32. a4 {[%clk 0:01:16]}  g5 {[%clk 0:00:27]} 33. h3 {[%clk 0:01:13]}  h5 {[%clk 0:00:26]} 34. axb5 {[%clk 0:01:11]}  axb5 {[%clk 0:00:25]} 35. d6 {[%clk 0:01:09]}  Rd8 {[%clk 0:00:15]} 36. Nd2 {[%clk 0:01:03]}  Rd7 {[%clk 0:00:10]} 37. Ne4 {[%clk 0:01:02]}  g4 {[%clk 0:00:07]} 38. hxg4 {[%clk 0:01:01]}  hxg4 {[%clk 0:00:08]} 39. Qd1 {[%clk 0:00:59]}  f5 {[%clk 0:00:03]} 40. Rxf5 {[%clk 0:00:57]}  Qd4 {[%clk 0:00:02]} 41. Qxg4 {[%clk 0:00:56]}  Qb2+ {[%clk 0:00:02]} 42. Kh3 {[%clk 0:00:55]}  Qa1 {[%clk 0:00:02]} 43. Nf6+ {[%clk 0:00:54]}  Kh8 {[%clk 0:00:01]} 44. Qh5+ {[%clk 0:00:53]}  Bh6 {[%clk 0:00:01]} 1-0


[Site "https://www.chess.com"]

[Event "Titled Tuesday Blitz October 11 Early 2022"]
[White "Ilkhomi, Jaloliddin"]
[Black "Samarth, J Rao"]
[WhiteFideId "14700948"]
[BlackFideId "46652370"]
[WhiteElo "2045"]
[BlackElo "1564"]
[Result "1-0"]
[Round "02"]
[TimeControl "180+1"]
[Date "2022.10.12"]
[WhiteClock "0:01:50"]
[BlackClock "0:02:04"]

1. d4 {[%clk 0:03:00]}  d5 {[%clk 0:02:58]} 2. Bf4 {[%clk 0:02:59]}  Nf6 {[%clk 0:02:56]} 3. e3 {[%clk 0:02:57]}  e6 {[%clk 0:02:55]} 4. Nd2 {[%clk 0:02:57]}  Be7 {[%clk 0:02:56]} 5. Ngf3 {[%clk 0:02:57]}  O-O {[%clk 0:02:57]} 6. Bd3 {[%clk 0:02:58]}  Nbd7 {[%clk 0:02:58]} 7. c3 {[%clk 0:02:58]}  Nh5 {[%clk 0:02:58]} 8. Be5 {[%clk 0:02:57]}  Nxe5 {[%clk 0:02:58]} 9. Nxe5 {[%clk 0:02:58]}  Nf6 {[%clk 0:02:58]} 10. f4 {[%clk 0:02:59]}  c5 {[%clk 0:02:58]} 11. O-O {[%clk 0:02:57]}  Nd7 {[%clk 0:02:58]} 12. Rf3 {[%clk 0:02:57]}  f5 {[%clk 0:02:56]} 13. Rh3 {[%clk 0:02:57]}  Nxe5 {[%clk 0:02:55]} 14. fxe5 {[%clk 0:02:57]}  g6 {[%clk 0:02:53]} 15. g4 {[%clk 0:02:51]}  c4 {[%clk 0:02:32]} 16. Bc2 {[%clk 0:02:32]}  b5 {[%clk 0:02:27]} 17. Qe2 {[%clk 0:02:12]}  f4 {[%clk 0:02:22]} 18. exf4 {[%clk 0:02:08]}  Rxf4 {[%clk 0:02:23]} 19. Rf1 {[%clk 0:02:08]}  Rxf1+ {[%clk 0:02:19]} 20. Qxf1 {[%clk 0:02:09]}  Bd7 {[%clk 0:02:14]} 21. Rxh7 {[%clk 0:01:50]}  Kxh7 {[%clk 0:02:04]} 22. Qf7+ {[%clk 0:01:50]}  Kh8 {[%clk 0:02:04]} 23. Qxg6 {[%clk 0:01:50]} 1-0


[Site "https://www.chess.com"]

[Event "Titled Tuesday Blitz October 11 Early 2022"]
[White "Jiganchine, Roman"]
[Black "Liyanage, Ranindu Dilshan"]
[WhiteFideId "2603667"]
[BlackFideId "9915834"]
[WhiteElo "2289"]
[BlackElo "2210"]
[Result "0-1"]
[Round "02"]
[TimeControl "180+1"]
[Date "2022.10.12"]
[WhiteClock "0:00:07"]
[BlackClock "0:00:09"]

1. e4 {[%clk 0:02:59]}  e6 {[%clk 0:02:59]} 2. d4 {[%clk 0:02:58]}  d5 {[%clk 0:02:59]} 3. Nd2 {[%clk 0:02:58]}  c5 {[%clk 0:02:58]} 4. c3 {[%clk 0:02:57]}  cxd4 {[%clk 0:02:54]} 5. cxd4 {[%clk 0:02:57]}  dxe4 {[%clk 0:02:52]} 6. Nxe4 {[%clk 0:02:57]}  Nc6 {[%clk 0:02:52]} 7. Nf3 {[%clk 0:02:56]}  Be7 {[%clk 0:02:48]} 8. Bd3 {[%clk 0:02:55]}  Nf6 {[%clk 0:02:48]} 9. Nc3 {[%clk 0:02:54]}  O-O {[%clk 0:02:48]} 10. O-O {[%clk 0:02:55]}  b6 {[%clk 0:02:45]} 11. a3 {[%clk 0:02:50]}  Bb7 {[%clk 0:02:45]} 12. Bc2 {[%clk 0:02:50]}  Rc8 {[%clk 0:02:36]} 13. Qd3 {[%clk 0:02:50]}  h6 {[%clk 0:02:28]} 14. Ne4 {[%clk 0:02:29]}  Nxe4 {[%clk 0:01:58]} 15. Qxe4 {[%clk 0:02:30]}  g6 {[%clk 0:01:55]} 16. Bxh6 {[%clk 0:02:29]}  Re8 {[%clk 0:01:31]} 17. Qg4 {[%clk 0:02:29]}  Kh7 {[%clk 0:01:20]} 18. Be3 {[%clk 0:02:18]}  Bf6 {[%clk 0:01:11]} 19. Qh5+ {[%clk 0:02:15]}  Kg8 {[%clk 0:01:06]} 20. Bxg6 {[%clk 0:02:03]}  fxg6 {[%clk 0:01:07]} 21. Qxg6+ {[%clk 0:02:03]}  Bg7 {[%clk 0:01:04]} 22. Ng5 {[%clk 0:02:02]}  Qf6 {[%clk 0:00:52]} 23. Qh7+ {[%clk 0:02:02]}  Kf8 {[%clk 0:00:53]} 24. Qh3 {[%clk 0:01:54]}  Qg6 {[%clk 0:00:47]} 25. d5 {[%clk 0:01:30]}  exd5 {[%clk 0:00:43]} 26. Qd7 {[%clk 0:01:29]}  Re7 {[%clk 0:00:36]} 27. Qh3 {[%clk 0:01:23]}  d4 {[%clk 0:00:33]} 28. Bd2 {[%clk 0:01:20]}  Ne5 {[%clk 0:00:29]} 29. Rae1 {[%clk 0:01:19]}  Rce8 {[%clk 0:00:18]} 30. Bb4 {[%clk 0:01:09]}  Qxg5 {[%clk 0:00:15]} 31. f4 {[%clk 0:01:09]}  Qg6 {[%clk 0:00:14]} 32. fxe5+ {[%clk 0:01:08]}  Kg8 {[%clk 0:00:15]} 33. e6 {[%clk 0:01:05]}  d3 {[%clk 0:00:13]} 34. Rf7 {[%clk 0:00:53]}  Rxf7 {[%clk 0:00:07]} 35. exf7+ {[%clk 0:00:52]}  Qxf7 {[%clk 0:00:08]} 36. Qxd3 {[%clk 0:00:49]}  Rxe1+ {[%clk 0:00:06]} 37. Bxe1 {[%clk 0:00:49]}  Qd5 {[%clk 0:00:06]} 38. Qxd5+ {[%clk 0:00:45]}  Bxd5 {[%clk 0:00:07]} 39. Bc3 {[%clk 0:00:45]}  Bh6 {[%clk 0:00:05]} 40. Kf2 {[%clk 0:00:44]}  Kf7 {[%clk 0:00:05]} 41. g4 {[%clk 0:00:43]}  Kg6 {[%clk 0:00:05]} 42. h4 {[%clk 0:00:43]}  Bf4 {[%clk 0:00:06]} 43. Bd4 {[%clk 0:00:42]}  Bc7 {[%clk 0:00:05]} 44. a4 {[%clk 0:00:41]}  a6 {[%clk 0:00:05]} 45. Be3 {[%clk 0:00:36]}  Bb3 {[%clk 0:00:05]} 46. h5+ {[%clk 0:00:35]}  Kg7 {[%clk 0:00:05]} 47. Bd4+ {[%clk 0:00:34]}  Kh7 {[%clk 0:00:05]} 48. a5 {[%clk 0:00:29]}  bxa5 {[%clk 0:00:04]} 49. Kf3 {[%clk 0:00:26]}  Bd1+ {[%clk 0:00:03]} 50. Kf2 {[%clk 0:00:22]}  Bxg4 {[%clk 0:00:03]} 51. h6 {[%clk 0:00:21]}  Kxh6 {[%clk 0:00:03]} 52. Ke3 {[%clk 0:00:21]}  Kh5 {[%clk 0:00:04]} 53. Kd2 {[%clk 0:00:21]}  Kg6 {[%clk 0:00:04]} 54. Kc3 {[%clk 0:00:21]}  Kf5 {[%clk 0:00:05]} 55. Kb3 {[%clk 0:00:20]}  Ke6 {[%clk 0:00:05]} 56. Ka3 {[%clk 0:00:20]}  Kd5 {[%clk 0:00:05]} 57. Bc3 {[%clk 0:00:19]}  Kc4 {[%clk 0:00:05]} 58. Ka2 {[%clk 0:00:16]}  Bd1 {[%clk 0:00:05]} 59. Ka1 {[%clk 0:00:16]}  a4 {[%clk 0:00:06]} 60. Bg7 {[%clk 0:00:16]}  Kb3 {[%clk 0:00:06]} 61. Bf6 {[%clk 0:00:16]}  Ba5 {[%clk 0:00:06]} 62. Bg7 {[%clk 0:00:16]}  Bb4 {[%clk 0:00:07]} 63. Bf6 {[%clk 0:00:16]}  a3 {[%clk 0:00:07]} 64. bxa3 {[%clk 0:00:15]}  Bxa3 {[%clk 0:00:07]} 65. Bg7 {[%clk 0:00:16]}  Bc5 {[%clk 0:00:07]} 66. Bf6 {[%clk 0:00:16]}  a5 {[%clk 0:00:08]} 67. Bg7 {[%clk 0:00:16]}  a4 {[%clk 0:00:08]} 68. Bf6 {[%clk 0:00:16]}  Be3 {[%clk 0:00:09]} 69. Bg7 {[%clk 0:00:16]}  a3 {[%clk 0:00:09]} 70. Bf6 {[%clk 0:00:16]}  Bc1 {[%clk 0:00:10]} 71. Kb1 {[%clk 0:00:14]}  Bb2 {[%clk 0:00:07]} 72. Bxb2 {[%clk 0:00:11]}  Bc2+ {[%clk 0:00:08]} 73. Ka1 {[%clk 0:00:07]}  axb2# {[%clk 0:00:09]} 0-1


[Site "https://www.chess.com"]

[Event "Titled Tuesday Blitz October 11 Early 2022"]
[White "Jobava, Baadur"]
[Black "Liu, Xiangyi"]
[WhiteFideId "13601520"]
[BlackFideId "8605718"]
[WhiteElo "2582"]
[BlackElo "2323"]
[Result "1-0"]
[Round "02"]
[TimeControl "180+1"]
[Date "2022.10.11"]
[WhiteClock "0:00:41"]
[BlackClock "0:00:43"]

1. b3 {[%clk 0:03:00]}  e5 {[%clk 0:02:59]} 2. Bb2 {[%clk 0:03:01]}  Bd6 {[%clk 0:02:59]} 3. e3 {[%clk 0:03:01]}  Qe7 {[%clk 0:02:59]} 4. g3 {[%clk 0:02:58]}  Nf6 {[%clk 0:02:58]} 5. Bg2 {[%clk 0:02:58]}  O-O {[%clk 0:02:58]} 6. Ne2 {[%clk 0:02:59]}  c6 {[%clk 0:02:58]} 7. c4 {[%clk 0:02:56]}  Bc7 {[%clk 0:02:58]} 8. Nbc3 {[%clk 0:02:56]}  Rd8 {[%clk 0:02:57]} 9. d4 {[%clk 0:02:56]}  d5 {[%clk 0:02:56]} 10. cxd5 {[%clk 0:02:56]}  cxd5 {[%clk 0:02:56]} 11. O-O {[%clk 0:02:56]}  Nc6 {[%clk 0:02:55]} 12. Nb5 {[%clk 0:02:55]}  e4 {[%clk 0:02:53]} 13. Nxc7 {[%clk 0:02:49]}  Qxc7 {[%clk 0:02:54]} 14. h3 {[%clk 0:02:49]}  Bf5 {[%clk 0:02:46]} 15. g4 {[%clk 0:02:41]}  Bxg4 {[%clk 0:02:20]} 16. hxg4 {[%clk 0:02:39]}  Nxg4 {[%clk 0:02:21]} 17. Ng3 {[%clk 0:02:10]}  f5 {[%clk 0:01:42]} 18. Qe2 {[%clk 0:01:54]}  Rd6 {[%clk 0:01:24]} 19. f4 {[%clk 0:01:23]}  exf3 {[%clk 0:01:24]} 20. Qxf3 {[%clk 0:01:16]}  g6 {[%clk 0:01:03]} 21. Ba3 {[%clk 0:01:10]}  Rd7 {[%clk 0:00:58]} 22. Qf4 {[%clk 0:01:02]}  Qa5 {[%clk 0:00:52]} 23. Nxf5 {[%clk 0:00:54]}  gxf5 {[%clk 0:00:47]} 24. Qxf5 {[%clk 0:00:55]}  Nxe3 {[%clk 0:00:45]} 25. Qxd7 {[%clk 0:00:47]}  Nxg2 {[%clk 0:00:43]} 26. Qf7+ {[%clk 0:00:44]}  Kh8 {[%clk 0:00:43]} 27. Bf8 {[%clk 0:00:41]} 1-0


[Site "https://www.chess.com"]